[Event "44th Chess Olympiad Open 2022"]
[Site "Chennai"]
[Date "2022.08.09"]
[Round "11.35"]
[White "Ahn, Hongjin"]
[Black "Ribera Veganzones, Josep Maria"]
[Result "1-0"]
[ECO "B30"]
[WhiteElo "2303"]
[BlackElo "2228"]
[Annotator "RC"]
[PlyCount "31"]
[EventDate "2022.07.29"]
[EventType "team-tourn"]
[EventCountry "IND"]
[SourceTitle "playchess.com"]
[Source "ChessBase"]
[SourceQuality "1"]
[WhiteTeam "Korea"]
[BlackTeam "Andorra"]
[WhiteTeamCountry "KOR"]
[BlackTeamCountry "AND"]
[TimeControl "40/5400+30:1800+30"]

1. e4 {[%emt 0:00:04]} c5 {[%emt 0:00:33]} 2. Nf3 {[%emt 0:00:06]} Nc6 {[%emt 0:00:27]} 3. Bc4 {[%emt 0:00:09]} e6 {[%emt 0:04:56]} 4. O-O {[%emt 0:00:11]} Nf6 {[%emt 0:01:53]} 5. Re1 {[%emt 0:00:09]} d6 {[%emt 0:00:49]} 6. Bb5 {[%emt 0:01:27]} Bd7 {[%emt 0:00:36]} 7. c3 {[%emt 0:00:28]} Qb6 {[%emt 0:10:27]} 8. a4 {[%emt 0:08:33]} Be7 {[%emt 0:02:26]} 9. d4 {[%emt 0:02:31]} cxd4 {[%emt 0:04:05]} 10. cxd4 {[%emt 0:00:12]} d5 {[%emt 0:00:30]} 11. exd5 {[%emt 0:01:02]} Nxd5 {[%emt 0:00:13]} 12. Nc3 {[%emt 0:00:07]} O-O {[%emt 0:00:58]} 13. Nxd5 {[%emt 0:00:22]} exd5 {[%emt 0:00:22]} 14. Bxc6 {[%emt 0:00:07]} Qxc6 {[%emt 0:06:35]} 15. Rxe7 {[%emt 0:00:18]} Be6 {[%emt 0:02:26]} 16. Ng5 {[%emt 0:01:20]} 1-0

[Event "44th Chess Olympiad Open 2022"]
[Site "Chennai"]
[Date "2022.08.09"]
[Round "11.35"]
[White "Ribera Veganzones, Serni"]
[Black "Li, Georgiy"]
[Result "1-0"]
[ECO "C84"]
[WhiteElo "2203"]
[BlackElo "1994"]
[Annotator "RC"]
[PlyCount "73"]
[EventDate "2022.07.29"]
[EventType "team-tourn"]
[EventCountry "IND"]
[SourceTitle "playchess.com"]
[Source "ChessBase"]
[SourceQuality "1"]
[WhiteTeam "Andorra"]
[BlackTeam "Korea"]
[WhiteTeamCountry "AND"]
[BlackTeamCountry "KOR"]
[TimeControl "40/5400+30:1800+30"]

1. e4 {[%emt 0:00:04]} e5 {[%emt 0:00:18]} 2. Nf3 {[%emt 0:00:17]} Nc6 {[%emt 0:00:11]} 3. Bb5 {[%emt 0:00:46]} a6 {[%emt 0:00:10]} 4. Ba4 {[%emt 0:00:30]} Nf6 {[%emt 0:00:20]} 5. d3 {[%emt 0:02:06]} d6 {[%emt 0:00:33]} 6. c3 {[%emt 0:01:10]} Be7 {[%emt 0:00:32]} 7. Nbd2 {[%emt 0:00:56]} O-O {[%emt 0:01:16]} 8. O-O {[%emt 0:00:52]} Bd7 {[%emt 0:04:26]} 9. Re1 {[%emt 0:01:17]} Na5 {[%emt 0:02:40]} 10. Bc2 {[%emt 0:02:33]} c5 {[%emt 0:00:18]} 11. Nf1 {[%emt 0:14:38]} Nc6 {[%emt 0:00:50]} 12. h3 {[%emt 0:01:25]} b5 {[%emt 0:00:58]} 13. d4 {[%emt 0:08:51]} cxd4 {[%emt 0:01:51]} 14. cxd4 {[%emt 0:00:05]} Nxd4 {[%emt 0:00:59]} 15. Nxd4 {[%emt 0:00:16]} exd4 {[%emt 0:00:09]} 16. Qxd4 {[%emt 0:00:54]} Rc8 {[%emt 0:00:34]} 17. Bb3 {[%emt 0:01:57]} Be6 {[%emt 0:01:37]} 18. Bg5 {[%emt 0:07:00]} h6 {[%emt 0:09:45]} 19. Bh4 {[%emt 0:00:55]} Nd7 {[%emt 0:02:50]} 20. Bxe7 {[%emt 0:04:25]} Qxe7 {[%emt 0:00:21]} 21. Rad1 {[%emt 0:03:42]} Bxb3 {[%emt 0:03:46]} 22. axb3 {[%emt 0:00:03]} Rc6 {[%emt 0:01:30]} 23. Ne3 {[%emt 0:03:36]} Qe6 {[%emt 0:01:37]} 24. Nf5 {[%emt 0:04:49]} Nf6 {[%emt 0:01:08]} 25. Rd3 {[%emt 0:01:09]} Kh7 {[%emt 0:02:45]} 26. e5 {[%emt 0:15:10]} Qxf5 {[%emt 0:06:27]} 27. exf6 {[%emt 0:00:06]} g6 {[%emt 0:00:40]} 28. Rf3 {[%emt 0:02:49]} Qg5 {[%emt 0:01:44]} 29. Re7 {[%emt 0:03:36]} Kg8 {[%emt 0:03:03]} 30. Rg3 {[%emt 0:03:58]} Qf5 {[%emt 0:01:43]} 31. Rf3 {[%emt 0:00:45]} Qg5 {[%emt 0:01:09]} 32. Kh2 {[%emt 0:00:14]} Qc5 {[%emt 0:06:51]} 33. Qg4 {[%emt 0:01:23]} Qd5 {[%emt 0:08:03]} 34. Qd7 {[%emt 0:01:54]} Rc2 {[%emt 0:02:10]} 35. Re8 {[%emt 0:01:32]} Qc6 {[%emt 0:03:39]} 36. Rxf8+ {[%emt 0:00:18]} Kxf8 {[%emt 0:00:24]} 37. Qe7+ {[%emt 0:00:12]} 1-0

[Event "44th Chess Olympiad Open 2022"]
[Site "Chennai"]
[Date "2022.08.09"]
[Round "11.36"]
[White "O`Gorman, Tom"]
[Black "Khusenkhojaev, Mustafokhuja"]
[Result "1-0"]
[ECO "D85"]
[WhiteElo "2401"]
[BlackElo "2238"]
[Annotator "RC"]
[PlyCount "101"]
[EventDate "2022.07.29"]
[EventType "team-tourn"]
[EventCountry "IND"]
[SourceTitle "playchess.com"]
[Source "ChessBase"]
[SourceQuality "1"]
[WhiteTeam "Ireland"]
[BlackTeam "Tajikistan"]
[WhiteTeamCountry "IRL"]
[BlackTeamCountry "TJK"]
[TimeControl "40/5400+30:1800+30"]

1. d4 {[%emt 0:00:10]} Nf6 {[%emt 0:00:10]} 2. c4 {[%emt 0:00:09]} g6 {[%emt 0:01:05]} 3. Nc3 {[%emt 0:00:06]} d5 {[%emt 0:00:07]} 4. cxd5 {[%emt 0:00:05]} Nxd5 {[%emt 0:00:05]} 5. e4 {[%emt 0:00:06]} Nxc3 {[%emt 0:00:09]} 6. bxc3 {[%emt 0:00:02]} Bg7 {[%emt 0:00:12]} 7. Nf3 {[%emt 0:00:06]} c5 {[%emt 0:00:09]} 8. Be2 {[%emt 0:02:27]} Nc6 {[%emt 0:00:14]} 9. d5 {[%emt 0:01:07]} Bxc3+ {[%emt 0:00:08]} 10. Bd2 {[%emt 0:00:07]} Bxa1 {[%emt 0:00:07]} 11. Qxa1 {[%emt 0:00:07]} Nd4 {[%emt 0:00:06]} 12. Nxd4 {[%emt 0:00:06]} cxd4 {[%emt 0:00:07]} 13. Qxd4 {[%emt 0:00:05]} O-O {[%emt 0:00:13]} 14. O-O {[%emt 0:00:10]} Qb6 {[%emt 0:02:52]} 15. Qc3 {[%emt 0:00:08]} f6 {[%emt 0:05:39]} 16. Be3 {[%emt 0:00:09]} Qd8 {[%emt 0:11:45]} 17. h4 {[%emt 0:19:36]} Bd7 {[%emt 0:07:33]} 18. Bh6 {[%emt 0:04:15]} Re8 {[%emt 0:05:27]} 19. h5 {[%emt 0:05:29]} Rc8 {[%emt 0:12:39]} 20. Qg3 {[%emt 0:04:33]} Qc7 {[%emt 0:00:42]} 21. f4 {[%emt 0:00:32]} Kf7 {[%emt 0:01:42]} 22. Kh1 {[%emt 0:08:51]} e6 {[%emt 0:07:23]} 23. e5 {[%emt 0:31:28]} exd5 {[%emt 0:17:43]} 24. Bf3 {[%emt 0:01:27]} Qc4 {[%emt 0:01:03]} 25. Rd1 {[%emt 0:01:28]} Rc5 {[%emt 0:00:10]} 26. hxg6+ {[%emt 0:07:36]} hxg6 {[%emt 0:00:25]} 27. Qh4 {[%emt 0:00:07]} fxe5 {[%emt 0:07:12]} 28. Bg5 {[%emt 0:00:50]} Bf5 {[%emt 0:08:40]} 29. Qh7+ {[%emt 0:05:32]} Ke6 {[%emt 0:00:01]} 30. fxe5 {[%emt 0:01:16]} Rc7 {[%emt 0:01:21]} 31. Qh6 {[%emt 0:00:41]} Rd7 {[%emt 0:00:23]} 32. Bf6 {[%emt 0:01:30]} Qb4 {[%emt 0:05:18]} 33. Qe3 {[%emt 0:01:45]} Rc8 {[%emt 0:00:45]} 34. Kh2 {[%emt 0:01:59]} d4 {[%emt 0:03:46]} 35. Qf4 {[%emt 0:00:41]} Qc3 {[%emt 0:00:56]} 36. Qh4 {[%emt 0:02:00]} Rf8 {[%emt 0:00:52]} 37. Qh6 {[%emt 0:00:31]} Rg8 {[%emt 0:01:13]} 38. Qh4 {[%emt 0:01:12]} Qe3 {[%emt 0:00:32]} 39. Re1 {[%emt 0:00:36]} Qd2 {[%emt 0:00:23]} 40. Bg5 {[%emt 0:00:20]} Qb4 {[%emt 0:00:28]} 41. Bd1 {[%emt 0:31:03]} a5 {[%emt 0:11:05]} 42. Bb3+ {[%emt 0:00:00]} Rd5 {[%emt 0:04:19]} 43. Qh7 {[%emt 0:00:00]} Rf8 {[%emt 0:01:00]} 44. Rc1 {[%emt 0:00:00]} Kxe5 {[%emt 0:02:19]} 45. Bxd5 {[%emt 0:00:00]} Kxd5 {[%emt 0:00:43]} 46. Be7 {[%emt 0:00:00]} Qd2 {[%emt 0:04:55]} 47. Rc5+ {[%emt 0:00:00]} Ke6 {[%emt 0:00:08]} 48. Bxf8 {[%emt 0:00:00]} Qf4+ {[%emt 0:00:04]} 49. Kg1 {[%emt 0:00:00]} Qe3+ {[%emt 0:00:03]} 50. Kh1 {[%emt 0:00:00]} Kf6 {[%emt 0:03:30]} 51. Bg7+ {[%emt 0:00:00]} 1-0

[Event "44th Chess Olympiad Open 2022"]
[Site "Chennai"]
[Date "2022.08.09"]
[Round "11.36"]
[White "Heidenfeld, Mark"]
[Black "Ilkhomi, Jaloliddin"]
[Result "1/2-1/2"]
[ECO "C15"]
[WhiteElo "2355"]
[BlackElo "2076"]
[Annotator "RC"]
[PlyCount "75"]
[EventDate "2022.07.29"]
[EventType "team-tourn"]
[EventCountry "IND"]
[SourceTitle "playchess.com"]
[Source "ChessBase"]
[SourceQuality "1"]
[WhiteTeam "Ireland"]
[BlackTeam "Tajikistan"]
[WhiteTeamCountry "IRL"]
[BlackTeamCountry "TJK"]
[TimeControl "40/5400+30:1800+30"]

1. e4 {[%emt 0:00:08]} e6 {[%emt 0:00:06]} 2. d4 {[%emt 0:00:11]} d5 {[%emt 0:00:05]} 3. Nc3 {[%emt 0:00:21]} Bb4 {[%emt 0:00:05]} 4. Nge2 {[%emt 0:00:17]} dxe4 {[%emt 0:00:07]} 5. a3 {[%emt 0:00:08]} Be7 {[%emt 0:00:31]} 6. Nxe4 {[%emt 0:00:25]} Nf6 {[%emt 0:00:07]} 7. Qd3 {[%emt 0:00:48]} O-O {[%emt 0:01:13]} 8. Bf4 {[%emt 0:02:50]} Nbd7 {[%emt 0:01:29]} 9. N2c3 {[%emt 0:01:36]} Nxe4 {[%emt 0:01:32]} 10. Nxe4 {[%emt 0:00:37]} Nf6 {[%emt 0:01:10]} 11. Be2 {[%emt 0:01:13]} Nxe4 {[%emt 0:03:02]} 12. Qxe4 {[%emt 0:00:06]} Bg5 {[%emt 0:00:59]} 13. Bxg5 {[%emt 0:02:58]} Qxg5 {[%emt 0:00:03]} 14. f4 {[%emt 0:08:53]} Qg6 {[%emt 0:02:28]} 15. Bf3 {[%emt 0:07:10]} Qxe4+ {[%emt 0:01:05]} 16. Bxe4 {[%emt 0:00:05]} Rb8 {[%emt 0:00:46]} 17. O-O-O {[%emt 0:00:22]} b6 {[%emt 0:00:25]} 18. Rhe1 {[%emt 0:01:09]} Rd8 {[%emt 0:01:06]} 19. Re3 {[%emt 0:07:30]} g6 {[%emt 0:03:36]} 20. c4 {[%emt 0:14:55]} Bb7 {[%emt 0:01:08]} 21. Bxb7 {[%emt 0:02:12]} Rxb7 {[%emt 0:00:01]} 22. d5 {[%emt 0:00:58]} exd5 {[%emt 0:01:28]} 23. Rxd5 {[%emt 0:00:47]} Rbb8 {[%emt 0:06:12]} 24. Re7 {[%emt 0:05:12]} Rxd5 {[%emt 0:00:26]} 25. cxd5 {[%emt 0:00:06]} Rc8 {[%emt 0:00:02]} 26. Kd2 {[%emt 0:00:15]} Kf8 {[%emt 0:00:57]} 27. d6 {[%emt 0:00:15]} Rd8 {[%emt 0:00:02]} 28. Rxc7 {[%emt 0:00:16]} Rxd6+ {[%emt 0:00:01]} 29. Ke3 {[%emt 0:00:34]} a6 {[%emt 0:01:11]} 30. Rb7 {[%emt 0:04:07]} b5 {[%emt 0:00:51]} 31. Ra7 {[%emt 0:05:29]} h5 {[%emt 0:01:12]} 32. h3 {[%emt 0:03:21]} h4 {[%emt 0:05:17]} 33. Kf3 {[%emt 0:11:25]} f5 {[%emt 0:13:24]} 34. Ke3 {[%emt 0:00:32]} Kg8 {[%emt 0:00:11]} 35. Ke2 {[%emt 0:02:17]} Kh8 {[%emt 0:00:26]} 36. Ke3 {[%emt 0:03:02]} Kg8 {[%emt 0:00:05]} 37. b3 {[%emt 0:04:21]} Kh8 {[%emt 0:00:41]} 38. a4 {[%emt 0:00:49]} 1/2-1/2

[Event "44th Chess Olympiad Open 2022"]
[Site "Chennai"]
[Date "2022.08.09"]
[Round "11.36"]
[White "Karimov, Alisher"]
[Black "Baburin, Alexander"]
[Result "1/2-1/2"]
[ECO "B90"]
[WhiteElo "2234"]
[BlackElo "2400"]
[Annotator "RC"]
[PlyCount "98"]
[EventDate "2022.07.29"]
[EventType "team-tourn"]
[EventCountry "IND"]
[SourceTitle "playchess.com"]
[Source "ChessBase"]
[SourceQuality "1"]
[WhiteTeam "Tajikistan"]
[BlackTeam "Ireland"]
[WhiteTeamCountry "TJK"]
[BlackTeamCountry "IRL"]
[TimeControl "40/5400+30:1800+30"]

1. e4 {[%emt 0:00:04]} c5 {[%emt 0:00:10]} 2. Nf3 {[%emt 0:00:05]} d6 {[%emt 0:00:58]} 3. d4 {[%emt 0:00:17]} cxd4 {[%emt 0:00:05]} 4. Nxd4 {[%emt 0:00:03]} Nf6 {[%emt 0:00:06]} 5. Nc3 {[%emt 0:00:05]} a6 {[%emt 0:00:08]} 6. Be3 {[%emt 0:01:23]} e5 {[%emt 0:00:55]} 7. Nb3 {[%emt 0:01:06]} Be7 {[%emt 0:02:59]} 8. f3 {[%emt 0:00:24]} Be6 {[%emt 0:01:59]} 9. Qd2 {[%emt 0:00:13]} O-O {[%emt 0:02:37]} 10. O-O-O {[%emt 0:00:16]} Nbd7 {[%emt 0:03:09]} 11. Kb1 {[%emt 0:00:50]} b5 {[%emt 0:07:26]} 12. g4 {[%emt 0:01:24]} Nb6 {[%emt 0:13:28]} 13. g5 {[%emt 0:03:48]} Nh5 {[%emt 0:03:30]} 14. Na5 {[%emt 0:01:40]} Qc7 {[%emt 0:09:22]} 15. Nd5 {[%emt 0:34:37]} Nxd5 {[%emt 0:06:15]} 16. exd5 {[%emt 0:00:10]} Bxd5 {[%emt 0:00:10]} 17. Qxd5 {[%emt 0:00:17]} Qxa5 {[%emt 0:00:07]} 18. Bd3 {[%emt 0:06:40]} Qc7 {[%emt 0:07:28]} 19. g6 {[%emt 0:03:42]} Kh8 {[%emt 0:12:24]} 20. gxf7 {[%emt 0:02:16]} Bf6 {[%emt 0:07:41]} 21. Be4 {[%emt 0:07:35]} Rad8 {[%emt 0:01:53]} 22. Qd3 {[%emt 0:09:40]} d5 {[%emt 0:09:08]} 23. Bxd5 {[%emt 0:11:15]} Rxf7 {[%emt 0:01:41]} 24. Qe2 {[%emt 0:05:25]} Rfd7 {[%emt 0:00:41]} 25. Be4 {[%emt 0:01:26]} Nf4 {[%emt 0:00:36]} 26. Rxd7 {[%emt 0:01:35]} Qxd7 {[%emt 0:00:29]} 27. Qf2 {[%emt 0:01:49]} b4 {[%emt 0:00:58]} 28. Rc1 {[%emt 0:00:39]} Nd5 {[%emt 0:01:22]} 29. Ka1 {[%emt 0:03:14]} Nxe3 {[%emt 0:01:11]} 30. Qxe3 {[%emt 0:00:01]} Qd2 {[%emt 0:00:38]} 31. Qxd2 {[%emt 0:00:28]} Rxd2 {[%emt 0:00:06]} 32. Rh1 {[%emt 0:00:15]} g6 {[%emt 0:00:51]} 33. a3 {[%emt 0:00:39]} bxa3 {[%emt 0:00:31]} 34. bxa3 {[%emt 0:00:05]} Kg7 {[%emt 0:00:35]} 35. Kb2 {[%emt 0:00:22]} Be7 {[%emt 0:01:24]} 36. Kb3 {[%emt 0:01:12]} Rd8 {[%emt 0:00:35]} 37. Bd3 {[%emt 0:00:31]} Rb8+ {[%emt 0:00:33]} 38. Ka2 {[%emt 0:01:13]} Kf6 {[%emt 0:01:51]} 39. h4 {[%emt 0:02:07]} Bc5 {[%emt 0:00:11]} 40. h5 {[%emt 0:00:43]} Bd4 {[%emt 0:01:07]} 41. a4 {[%emt 0:30:28]} Kg5 {[%emt 0:08:36]} 42. hxg6 {[%emt 0:00:00]} hxg6 {[%emt 0:00:05]} 43. Rb1 {[%emt 0:00:00]} Rxb1 {[%emt 0:06:03]} 44. Kxb1 {[%emt 0:00:00]} Kf4 {[%emt 0:00:43]} 45. Bxg6 {[%emt 0:00:00]} Kxf3 {[%emt 0:00:11]} 46. Kc1 {[%emt 0:00:00]} e4 {[%emt 0:02:24]} 47. Kd1 {[%emt 0:00:00]} a5 {[%emt 0:01:06]} 48. Bh5+ {[%emt 0:00:00]} Ke3 {[%emt 0:01:03]} 49. Be2 {[%emt 0:00:00]} Bc3 {[%emt 0:00:16]} 1/2-1/2

[Event "44th Chess Olympiad Open 2022"]
[Site "Chennai"]
[Date "2022.08.09"]
[Round "11.36"]
[White "Sharifov, Mekhriddin"]
[Black "Kanyamarala, Tarun"]
[Result "1-0"]
[ECO "B42"]
[WhiteElo "2097"]
[BlackElo "2379"]
[Annotator "RC"]
[PlyCount "119"]
[EventDate "2022.07.29"]
[EventType "team-tourn"]
[EventCountry "IND"]
[SourceTitle "playchess.com"]
[Source "ChessBase"]
[SourceQuality "1"]
[WhiteTeam "Tajikistan"]
[BlackTeam "Ireland"]
[WhiteTeamCountry "TJK"]
[BlackTeamCountry "IRL"]
[TimeControl "40/5400+30:1800+30"]

1. e4 {[%emt 0:00:02]} c5 {[%emt 0:00:06]} 2. Nf3 {[%emt 0:00:04]} e6 {[%emt 0:00:07]} 3. d4 {[%emt 0:00:21]} cxd4 {[%emt 0:00:07]} 4. Nxd4 {[%emt 0:00:03]} a6 {[%emt 0:00:07]} 5. Bd3 {[%emt 0:00:28]} Bc5 {[%emt 0:00:10]} 6. Nb3 {[%emt 0:00:06]} Ba7 {[%emt 0:00:05]} 7. Nc3 {[%emt 0:01:30]} Ne7 {[%emt 0:02:10]} 8. Bg5 {[%emt 0:05:59]} f6 {[%emt 0:08:51]} 9. Bh4 {[%emt 0:02:52]} O-O {[%emt 0:01:25]} 10. Qe2 {[%emt 0:08:08]} b5 {[%emt 0:06:13]} 11. a3 {[%emt 0:11:59]} Nbc6 {[%emt 0:04:48]} 12. O-O-O {[%emt 0:22:00]} Bb7 {[%emt 0:04:51]} 13. f4 {[%emt 0:03:47]} Qc7 {[%emt 0:11:46]} 14. e5 {[%emt 0:06:12]} fxe5 {[%emt 0:04:23]} 15. fxe5 {[%emt 0:03:21]} Nf5 {[%emt 0:06:20]} 16. Bg3 {[%emt 0:00:08]} b4 {[%emt 0:13:34]} 17. axb4 {[%emt 0:01:36]} Nxb4 {[%emt 0:00:22]} 18. Bxf5 {[%emt 0:10:00]} Rxf5 {[%emt 0:00:32]} 19. Rhf1 {[%emt 0:01:45]} Raf8 {[%emt 0:05:51]} 20. Rxf5 {[%emt 0:00:06]} Rxf5 {[%emt 0:00:03]} 21. Nd4 {[%emt 0:00:09]} Rf8 {[%emt 0:01:28]} 22. Kb1 {[%emt 0:06:14]} Ba8 {[%emt 0:06:13]} 23. Qg4 {[%emt 0:02:32]} Qb7 {[%emt 0:10:42]} 24. Nxe6 {[%emt 0:08:13]} dxe6 {[%emt 0:00:36]} 25. Qxe6+ {[%emt 0:00:03]} Qf7 {[%emt 0:03:59]} 26. Qxf7+ {[%emt 0:00:12]} Rxf7 {[%emt 0:03:11]} 27. e6 {[%emt 0:00:10]} Rf8 {[%emt 0:00:25]} 28. Bd6 {[%emt 0:00:11]} Nc6 {[%emt 0:00:47]} 29. Bxf8 {[%emt 0:00:05]} Kxf8 {[%emt 0:00:01]} 30. Rd7 {[%emt 0:00:18]} Bg1 {[%emt 0:01:04]} 31. Nd5 {[%emt 0:01:19]} Bxh2 {[%emt 0:00:35]} 32. Nb6 {[%emt 0:00:17]} Ne5 {[%emt 0:00:19]} 33. Rd8+ {[%emt 0:00:11]} Ke7 {[%emt 0:00:01]} 34. Rxa8 {[%emt 0:00:06]} Kxe6 {[%emt 0:00:03]} 35. Rxa6 {[%emt 0:00:09]} Kf5 {[%emt 0:00:04]} 36. Ra7 {[%emt 0:01:23]} Bg1 {[%emt 0:00:38]} 37. Rxg7 {[%emt 0:00:02]} Bxb6 {[%emt 0:00:03]} 38. Rxh7 {[%emt 0:00:06]} Nc4 {[%emt 0:03:04]} 39. b4 {[%emt 0:02:54]} Ne3 {[%emt 0:00:00]} 40. Kb2 {[%emt 0:01:05]} Nxg2 {[%emt 0:00:00]} 41. c4 {[%emt 0:30:22]} Bd4+ {[%emt 0:27:26]} 42. Kb3 {[%emt 0:00:16]} Ne3 {[%emt 0:00:16]} 43. Re7 {[%emt 0:01:09]} Be5 {[%emt 0:00:34]} 44. b5 {[%emt 0:00:24]} Ke4 {[%emt 0:01:28]} 45. b6 {[%emt 0:00:24]} Nf5 {[%emt 0:00:03]} 46. Rd7 {[%emt 0:01:32]} Nd4+ {[%emt 0:00:29]} 47. Kb4 {[%emt 0:01:37]} Nc2+ {[%emt 0:00:13]} 48. Kc5 {[%emt 0:00:00]} Na1 {[%emt 0:00:00]} 49. b7 {[%emt 0:00:00]} Nb3+ {[%emt 0:00:00]} 50. Kb6 {[%emt 0:00:00]} Bd4+ {[%emt 0:00:00]} 51. Rxd4+ {[%emt 0:00:00]} Kxd4 {[%emt 0:00:00]} 52. b8=Q {[%emt 0:00:09]} Kxc4 {[%emt 0:00:00]} 53. Qf4+ {[%emt 0:00:00]} Kc3 {[%emt 0:00:00]} 54. Kb5 {[%emt 0:00:00]} Nd4+ {[%emt 0:00:00]} 55. Ka4 {[%emt 0:00:00]} Kc4 {[%emt 0:00:00]} 56. Qc7+ {[%emt 0:00:00]} Kd5 {[%emt 0:00:00]} 57. Kb4 {[%emt 0:00:00]} Nc6+ {[%emt 0:00:00]} 58. Kc3 {[%emt 0:00:00]} Kc5 {[%emt 0:00:00]} 59. Qd7 {[%emt 0:00:00]} Kb6 {[%emt 0:00:00]} 60. Qd5 {[%emt 0:00:00]} 1-0

[Event "44th Chess Olympiad Open 2022"]
[Site "Chennai"]
[Date "2022.08.09"]
[Round "11.37"]
[White "Risteski, Emil"]
[Black "Chavez, Ricardo Ernesto"]
[Result "1/2-1/2"]
[ECO "B06"]
[WhiteElo "2405"]
[BlackElo "2179"]
[Annotator "RC"]
[PlyCount "71"]
[EventDate "2022.07.29"]
[EventType "team-tourn"]
[EventCountry "IND"]
[SourceTitle "playchess.com"]
[Source "ChessBase"]
[SourceQuality "1"]
[WhiteTeam "Macedonia"]
[BlackTeam "El Salvador"]
[WhiteTeamCountry "MKD"]
[BlackTeamCountry "ESA"]
[TimeControl "40/5400+30:1800+30"]

1. e4 {[%emt 0:00:13]} g6 {[%emt 0:00:05]} 2. d4 {[%emt 0:00:08]} Bg7 {[%emt 0:00:09]} 3. Nc3 {[%emt 0:00:05]} d6 {[%emt 0:00:05]} 4. f4 {[%emt 0:00:06]} a6 {[%emt 0:00:11]} 5. Nf3 {[%emt 0:00:06]} b5 {[%emt 0:00:09]} 6. Bd3 {[%emt 0:00:07]} Nd7 {[%emt 0:00:09]} 7. a4 {[%emt 0:00:09]} b4 {[%emt 0:00:06]} 8. Ne2 {[%emt 0:00:03]} a5 {[%emt 0:00:33]} 9. e5 {[%emt 0:05:02]} e6 {[%emt 0:01:05]} 10. Ng3 {[%emt 0:03:13]} Ba6 {[%emt 0:01:52]} 11. h4 {[%emt 0:13:29]} h5 {[%emt 0:08:55]} 12. Ng5 {[%emt 0:00:00]} Ne7 {[%emt 0:04:13]} 13. O-O {[%emt 0:00:00]} Bxd3 {[%emt 0:09:54]} 14. Qxd3 {[%emt 0:00:00]} d5 {[%emt 0:00:15]} 15. c3 {[%emt 0:03:20]} bxc3 {[%emt 0:06:44]} 16. bxc3 {[%emt 0:04:10]} Nb6 {[%emt 0:05:50]} 17. Ba3 {[%emt 0:01:01]} Nc4 {[%emt 0:09:34]} 18. Bc5 {[%emt 0:02:35]} Qd7 {[%emt 0:07:28]} 19. Rfb1 {[%emt 0:03:57]} Qc6 {[%emt 0:05:08]} 20. Rb5 {[%emt 0:04:59]} Bh6 {[%emt 0:02:18]} 21. Rab1 {[%emt 0:03:16]} Bxg5 {[%emt 0:10:43]} 22. fxg5 {[%emt 0:00:11]} Nf5 {[%emt 0:00:24]} 23. Nxf5 {[%emt 0:01:32]} exf5 {[%emt 0:00:12]} 24. Qe2 {[%emt 0:05:57]} Kd7 {[%emt 0:00:36]} 25. Qa2 {[%emt 0:00:31]} Qe6 {[%emt 0:01:10]} 26. Rb7 {[%emt 0:04:32]} Ra6 {[%emt 0:01:35]} 27. R1b5 {[%emt 0:06:04]} Rha8 {[%emt 0:00:59]} 28. Qb1 {[%emt 0:03:20]} Rc6 {[%emt 0:03:50]} 29. Rb8 {[%emt 0:04:12]} Rxb8 {[%emt 0:01:12]} 30. Rxb8 {[%emt 0:04:03]} Nxe5 {[%emt 0:01:19]} 31. Qb7 {[%emt 0:22:22]} Nf3+ {[%emt 0:02:10]} 32. gxf3 {[%emt 0:01:41]} Qe1+ {[%emt 0:00:08]} 33. Kg2 {[%emt 0:00:41]} Qe2+ {[%emt 0:00:06]} 34. Kg1 {[%emt 0:00:33]} Qe1+ {[%emt 0:00:06]} 35. Kg2 {[%emt 0:00:06]} Qe2+ {[%emt 0:00:06]} 36. Kg1 {[%emt 0:00:42]} 1/2-1/2

[Event "44th Chess Olympiad Open 2022"]
[Site "Chennai"]
[Date "2022.08.09"]
[Round "11.37"]
[White "Nikolovski, Nikola"]
[Black "Arias, Lemnys A."]
[Result "1-0"]
[ECO "B23"]
[WhiteElo "2366"]
[BlackElo "2258"]
[Annotator "RC"]
[PlyCount "115"]
[EventDate "2022.07.29"]
[EventType "team-tourn"]
[EventCountry "IND"]
[SourceTitle "playchess.com"]
[Source "ChessBase"]
[SourceQuality "1"]
[WhiteTeam "Macedonia"]
[BlackTeam "El Salvador"]
[WhiteTeamCountry "MKD"]
[BlackTeamCountry "ESA"]
[TimeControl "40/5400+30:1800+30"]

1. e4 {[%emt 0:00:10]} c5 {[%emt 0:00:36]} 2. Nc3 {[%emt 0:00:09]} Nc6 {[%emt 0:00:25]} 3. f4 {[%emt 0:00:07]} g6 {[%emt 0:00:20]} 4. Nf3 {[%emt 0:00:07]} Bg7 {[%emt 0:00:12]} 5. a4 {[%emt 0:00:08]} d6 {[%emt 0:02:10]} 6. Bb5 {[%emt 0:00:14]} Bd7 {[%emt 0:00:06]} 7. d3 {[%emt 0:00:20]} e6 {[%emt 0:02:01]} 8. Bxc6 {[%emt 0:14:50]} Bxc6 {[%emt 0:00:09]} 9. O-O {[%emt 0:00:06]} Ne7 {[%emt 0:03:42]} 10. Qe1 {[%emt 0:00:13]} h6 {[%emt 0:04:32]} 11. Kh1 {[%emt 0:08:12]} O-O {[%emt 0:00:58]} 12. Bd2 {[%emt 0:03:46]} f5 {[%emt 0:05:19]} 13. Qh4 {[%emt 0:16:37]} d5 {[%emt 0:04:09]} 14. exd5 {[%emt 0:14:03]} Nxd5 {[%emt 0:01:27]} 15. Qg3 {[%emt 0:00:51]} Kh7 {[%emt 0:02:32]} 16. Rfe1 {[%emt 0:05:06]} Qf6 {[%emt 0:05:36]} 17. Ne5 {[%emt 0:00:54]} Nb4 {[%emt 0:00:06]} 18. Rac1 {[%emt 0:01:04]} Rad8 {[%emt 0:08:38]} 19. b3 {[%emt 0:01:23]} Be8 {[%emt 0:04:59]} 20. Nf3 {[%emt 0:04:34]} Nc6 {[%emt 0:02:25]} 21. Ne2 {[%emt 0:01:47]} Qb2 {[%emt 0:01:46]} 22. Ne5 {[%emt 0:04:24]} Nd4 {[%emt 0:04:15]} 23. Nc4 {[%emt 0:03:38]} Nxe2 {[%emt 0:00:40]} 24. Rxe2 {[%emt 0:00:20]} Qf6 {[%emt 0:08:06]} 25. Rce1 {[%emt 0:00:05]} Bf7 {[%emt 0:00:15]} 26. Bc1 {[%emt 0:00:27]} Qe7 {[%emt 0:02:36]} 27. Ne5 {[%emt 0:01:04]} Rd6 {[%emt 0:08:46]} 28. Ba3 {[%emt 0:00:24]} Rc8 {[%emt 0:00:23]} 29. Qe3 {[%emt 0:07:47]} Ra6 {[%emt 0:09:30]} 30. Nc4 {[%emt 0:05:42]} g5 {[%emt 0:00:39]} 31. Bb2 {[%emt 0:01:04]} Rg8 {[%emt 0:01:48]} 32. Bxg7 {[%emt 0:01:31]} Rxg7 {[%emt 0:01:14]} 33. Qe5 {[%emt 0:00:36]} Qf8 {[%emt 0:02:38]} 34. Kg1 {[%emt 0:02:08]} Bh5 {[%emt 0:00:34]} 35. Re3 {[%emt 0:00:34]} Rd7 {[%emt 0:02:31]} 36. fxg5 {[%emt 0:01:23]} hxg5 {[%emt 0:01:00]} 37. Rh3 {[%emt 0:00:05]} Kh6 {[%emt 0:02:39]} 38. Qe2 {[%emt 0:00:45]} g4 {[%emt 0:00:23]} 39. Rh4 {[%emt 0:02:09]} Qf6 {[%emt 0:00:04]} 40. g3 {[%emt 0:01:08]} Qd4+ {[%emt 0:05:57]} 41. Kf1 {[%emt 0:05:05]} Rd5 {[%emt 0:00:29]} 42. Ne5 {[%emt 0:04:05]} Rxe5 {[%emt 0:05:30]} 43. Qxe5 {[%emt 0:00:28]} Rd6 {[%emt 0:00:27]} 44. h3 {[%emt 0:00:50]} Kg5 {[%emt 0:01:23]} 45. hxg4 {[%emt 0:05:54]} Bxg4 {[%emt 0:00:08]} 46. Rh7 {[%emt 0:00:35]} Qxe5 {[%emt 0:01:37]} 47. Rxe5 {[%emt 0:00:01]} b6 {[%emt 0:00:02]} 48. Re1 {[%emt 0:01:41]} a5 {[%emt 0:00:19]} 49. Kf2 {[%emt 0:00:14]} Bh5 {[%emt 0:02:02]} 50. Rh1 {[%emt 0:03:06]} Bg6 {[%emt 0:00:02]} 51. Re7 {[%emt 0:00:20]} Kf6 {[%emt 0:00:09]} 52. Rb7 {[%emt 0:00:45]} e5 {[%emt 0:04:17]} 53. Rh8 {[%emt 0:04:11]} e4 {[%emt 0:00:00]} 54. dxe4 {[%emt 0:00:23]} fxe4 {[%emt 0:00:00]} 55. Ke3 {[%emt 0:01:50]} Ke5 {[%emt 0:00:00]} 56. Rh6 {[%emt 0:02:37]} Rf6 {[%emt 0:01:45]} 57. Re7+ {[%emt 0:00:59]} Kf5 {[%emt 0:00:21]} 58. Rg7 {[%emt 0:00:40]} 1-0